fUSD/lending_fUSD_20250108
["ID","MTS","AMOUNT","RATE_DAILY","PERIOD"]
[348106841,1736317836338,-500.0,9.999e-05,2]
[348106842,1736317836347,-500.0,9.999e-05,2]
[348106843,1736317836357,-789.15,9.999e-05,2]
[348106844,1736317836366,-1018.47,9.999e-05,2]
[348106845,1736317836376,-501.91,9.999e-05,2]
[348106846,1736317836385,-500.0,9.999e-05,2]
[348106847,1736317836395,-881.14,9.999e-05,2]
[348106848,1736317836404,-500.0,9.999e-05,2]
[348106849,1736317836413,-500.0,9.999e-05,2]
[348106850,1736317836422,-500.0,9.999e-05,2]
[348106851,1736317836431,-500.0,9.999e-05,2]
[348106852,1736317836441,-500.0,9.999e-05,2]
[348106853,1736317836450,-740.33,9.999e-05,2]
[348106854,1736317836459,-500.0,9.999e-05,2]
[348106855,1736317836469,-500.0,9.999e-05,2]
[348106856,1736317836478,-500.0,9.999e-05,2]
[348106857,1736317836488,-500.0,9.999e-05,2]
[348106858,1736317836497,-500.0,9.999e-05,2]
[348106859,1736317836507,-315.38,9.999e-05,2]
[348106860,1736317836516,-2015.03,9.999e-05,2]
[348106861,1736317836525,-500.0,9.999e-05,2]
[348106862,1736317836534,-494.70079647,9.999e-05,2]
[348106863,1736317836543,-162.76,0.0001,2]
[348106864,1736317836552,-55385.00579435,0.0001,2]
[348106865,1736317836564,-1565.51600315,0.0001,2]
[348106866,1736317836579,-462.97999,0.0001,2]
[348106943,1736317838384,-500.0,9.999e-05,2]
[348106944,1736317838394,-499.53879252,0.0001,2]
[348106945,1736317838547,-3105.76338135,0.0001,2]
[348106946,1736317838559,-61652.86444742,0.0001,2]
[348106947,1736317838580,-7946.00382047,0.0001,2]
[348106958,1736317840315,-500.0,9.999e-05,2]
[348106959,1736317840325,-707.86980334,0.0001,2]
[348106960,1736317840337,-1271.9747834,0.0001,2]
[348106961,1736317840481,-6594.82303768,0.0001,2]
[348106962,1736317840493,-504.64728,0.0001,2]
[348106963,1736317840504,-418.54789703,0.0001,2]
[348106984,1736317843323,-500.0,9.999e-05,2]
[348106985,1736317843333,-500.0,9.999e-05,2]
[348106986,1736317843342,-2851.88067639,0.0001,2]
[348106987,1736317843353,-77987.22539437,0.0001,2]
[348106988,1736317843368,-4049.1615056,0.0001,2]
[348106989,1736317843395,-2599.444995,0.0001,2]
[348106990,1736317843523,-300.0,0.0001,2]
[348106991,1736317843535,-501.05350463,0.0001,2]
[348106992,1736317843629,-982.8819,0.0001,2]
[348106994,1736317843640,-1068.64597801,0.0001,2]
[348107003,1736317846279,-500.0,9.999e-05,2]
[348107004,1736317846289,-500.0,9.999e-05,2]
[348107005,1736317846298,-14704.39999849,0.0001,2]
[348107006,1736317846439,-351256.18530613,0.0001,2]
[348107007,1736317846450,-6255.479037,0.0001,2]
[348107008,1736317846461,-1226.224995,0.0001,2]
[348107009,1736317846471,-500.0,0.0001,2]
[348107010,1736317846546,-968.184272,0.0001,2]
[348107011,1736317971338,805.46,8.219e-05,2]
[348107014,1736318371606,4000.0,0.0002,120]
[348107023,1736318925895,9447.0,0.0002,120]
[348107024,1736318986623,-250.0,9.087e-05,2]
[348107025,1736318986650,-250.0,9.161e-05,2]
[348107026,1736318986681,-300.0,9.203e-05,2]
[348107027,1736318986709,-9200.0,9.204e-05,2]
[348107041,1736319031532,-250.0,9.175e-05,2]
[348107042,1736319031542,-284.81362578,9.175e-05,2]
[348107043,1736319031551,-423.9519903,9.204e-05,2]
[348107044,1736319031742,-1598.96892843,9.204e-05,2]
[348107045,1736319031977,-480.98654508,9.204e-05,2]
[348107046,1736319031989,-268.97173254,9.204e-05,2]
[348107047,1736319032415,-469.1440006,9.204e-05,2]
[348107048,1736319032427,-526.52680305,9.204e-05,2]
[348107049,1736319032437,-178.0,9.22e-05,2]
[348107050,1736319032447,-207.73630972,9.22e-05,2]
[348107051,1736319032458,-652.05,9.31e-05,2]
[348107052,1736319032472,-1852.42,9.367e-05,2]
[348107053,1736319032482,-175.71,9.409e-05,2]
[348107054,1736319032491,-1000.0,9.621e-05,2]
[348107055,1736319032501,-423.4,9.645e-05,2]
[348107056,1736319032510,-183.45,9.67e-05,2]
[348107057,1736319032520,-437.79,9.72e-05,2]
[348107058,1736319032530,-437.79,9.72e-05,2]
[348107059,1736319032541,-437.79,9.72e-05,2]
[348107061,1736319032551,-808.44,9.782e-05,2]
[348107063,1736319032560,-437.79,9.782e-05,2]
[348107065,1736319032570,-150.0,9.836e-05,2]
[348107067,1736319032580,-182.91,9.836e-05,2]
[348107069,1736319032590,-150.0,9.836e-05,2]
[348107071,1736319032598,-182.91,9.836e-05,2]
[348107073,1736319032608,-150.0,9.836e-05,2]
[348107075,1736319032617,-150.0,9.836e-05,2]
[348107077,1736319032626,-182.79,9.836e-05,2]
[348107079,1736319032636,-150.0,9.836e-05,2]
[348107081,1736319032646,-150.0,9.836e-05,2]
[348107082,1736319032655,-150.0,9.836e-05,2]
[348107084,1736319032664,-300.0,9.836e-05,2]
[348107086,1736319032674,-150.0,9.899e-05,2]
[348107088,1736319032684,-1591.13484843,9.9e-05,2]
[348107091,1736319032696,-474.0,9.9e-05,2]
[348107093,1736319032707,-68.53265157,9.9e-05,2]
[348107095,1736319032719,-361.71112395,9.9e-05,2]
[348107098,1736319032738,-963.42425968,9.9e-05,2]
[348107263,1736319037673,-479.72,9.9e-05,2]
[348107264,1736319037685,-2769.23021637,9.9e-05,2]
[348107265,1736319037695,-500.0,9.9e-05,2]
[348107266,1736319037705,-500.0,9.973e-05,2]
[348107267,1736319037717,-160.0120206,9.973e-05,2]
[348107268,1736319037727,-500.0,9.999e-05,2]
[348107269,1736319037737,-500.0,9.999e-05,2]
[348107270,1736319037747,-500.0,9.999e-05,2]
[348107271,1736319037757,-500.0,9.999e-05,2]
[348107272,1736319037766,-547.73,9.999e-05,2]
[348107273,1736319037776,-501.65288501,9.999e-05,2]
[348107274,1736319037785,-500.89761573,9.999e-05,2]
[348107275,1736319037794,-501.33627234,9.999e-05,2]
[348107276,1736319037803,-513.3906486,9.999e-05,2]
[348107277,1736319037812,-502.4892401,9.999e-05,2]
[348107278,1736319037822,-502.09367699,9.999e-05,2]
[348107279,1736319037831,-356.17375403,9.999e-05,2]
[348107280,1736319037841,-501.53917269,9.999e-05,2]
[348107281,1736319037851,-509.04147935,9.999e-05,2]
[348107282,1736319037861,-504.36883084,9.999e-05,2]
[348107283,1736319037871,-504.36926381,9.999e-05,2]
[348107284,1736319037880,-482.75053707,9.999e-05,2]
[348107285,1736319037890,-505.20692821,9.999e-05,2]
[348107286,1736319037899,-500.0,9.999e-05,2]
[348107287,1736319037909,-512.68071007,9.999e-05,2]
[348107288,1736319037919,-513.05844112,9.999e-05,2]
[348107289,1736319037928,-505.26409467,9.999e-05,2]
[348107290,1736319037938,-500.0,9.999e-05,2]
[348107291,1736319037947,-508.32434252,9.999e-05,2]
[348107292,1736319037957,-1481.81,9.999e-05,2]
[348107293,1736319037967,-500.0,9.999e-05,2]
[348107295,1736319037977,-500.0,9.999e-05,2]
[348107297,1736319037988,-221.361275,9.999e-05,2]
[348107298,1736319037997,-310.957705,9.999e-05,2]
[348107299,1736319038006,-273.240862,9.999e-05,2]
[348107300,1736319038015,-500.0,9.999e-05,2]
[348107302,1736319038025,-500.0,9.999e-05,2]
[348107303,1736319038035,-500.0,9.999e-05,2]
[348107304,1736319038045,-617.04665624,9.999e-05,2]
[348107305,1736319038054,-500.0,9.999e-05,2]
[348107306,1736319038065,-500.0,9.999e-05,2]
[348107308,1736319038074,-500.0,9.999e-05,2]
[348107309,1736319038084,-500.0,9.999e-05,2]
[348107310,1736319038093,-500.0,9.999e-05,2]
[348107311,1736319038102,-500.0,9.999e-05,2]
[348107312,1736319038112,-500.0,9.999e-05,2]
[348107313,1736319038122,-500.0,9.999e-05,2]
[348107314,1736319038132,-500.0,9.999e-05,2]
[348107315,1736319038141,-500.0,9.999e-05,2]
[348107316,1736319038151,-293.77255628,9.999e-05,2]
[348107321,1736319038333,-206.22744372,9.999e-05,2]
[348107323,1736319038343,-274.19755628,9.999e-05,2]
[348107325,1736319038356,-225.80244372,9.999e-05,2]
[348107326,1736319038366,-179.71541743,9.999e-05,2]
[348107327,1736319038378,-320.28458257,9.999e-05,2]
[348107328,1736319038387,-500.0,9.999e-05,2]
[348107329,1736319038397,-246.20939179,9.999e-05,2]
[348107330,1736319038414,-253.79060821,9.999e-05,2]
[348107331,1736319038424,-500.0,9.999e-05,2]
[348107332,1736319038433,-312.68946914,9.999e-05,2]
[348107333,1736319038445,-187.31053086,9.999e-05,2]
[348107334,1736319038454,-500.0,9.999e-05,2]
[348107335,1736319038464,-592.94660106,9.999e-05,2]
[348107336,1736319038474,-500.0,9.999e-05,2]
[348107337,1736319038484,-500.0,9.999e-05,2]
[348107338,1736319038494,-500.0,9.999e-05,2]
[348107339,1736319038504,-500.0,9.999e-05,2]
[348107340,1736319038514,-500.0,9.999e-05,2]
[348107341,1736319038524,-500.0,9.999e-05,2]
[348107342,1736319038533,-500.0,9.999e-05,2]
[348107343,1736319038543,-500.0,9.999e-05,2]
[348107344,1736319038552,-500.0,9.999e-05,2]
[348107345,1736319038562,-500.0,9.999e-05,2]
[348107346,1736319038572,-272.91258886,9.999e-05,2]
[348107347,1736319038581,-500.0,9.999e-05,2]
[348107348,1736319038591,-500.0,9.999e-05,2]
[348107349,1736319038601,-500.0,9.999e-05,2]
[348107350,1736319038611,-500.0,9.999e-05,2]
[348107351,1736319038620,-500.0,9.999e-05,2]
[348107352,1736319038630,-500.0,9.999e-05,2]
[348107353,1736319038639,-500.0,9.999e-05,2]
[348107354,1736319038649,-500.0,9.999e-05,2]
[348107355,1736319038658,-500.0,9.999e-05,2]
[348107356,1736319038667,-500.0,9.999e-05,2]
[348107357,1736319038677,-500.0,9.999e-05,2]
[348107358,1736319038686,-500.0,9.999e-05,2]
[348107359,1736319038696,-500.0,9.999e-05,2]
[348107360,1736319038705,-500.0,9.999e-05,2]
[348107361,1736319038717,-500.0,9.999e-05,2]
[348107362,1736319038727,-500.0,9.999e-05,2]
[348107363,1736319038736,-500.0,9.999e-05,2]
[348107364,1736319038745,-500.0,9.999e-05,2]
[348107365,1736319038756,-500.0,9.999e-05,2]
[348107366,1736319038765,-500.0,9.999e-05,2]
[348107367,1736319038775,-500.0,9.999e-05,2]
[348107368,1736319038784,-500.0,9.999e-05,2]
[348107369,1736319038794,-500.0,9.999e-05,2]
[348107370,1736319038803,-513.65125498,9.999e-05,2]
[348107371,1736319038812,-500.0,9.999e-05,2]
[348107372,1736319038823,-164.97902425,9.999e-05,2]
[348107373,1736319038835,-335.02097575,9.999e-05,2]
[348107374,1736319038845,-500.0,9.999e-05,2]
[348107375,1736319038854,-500.0,9.999e-05,2]
[348107376,1736319038864,-151.55362485,9.999e-05,2]
[348107377,1736319038875,-348.44637515,9.999e-05,2]
[348107378,1736319038885,-500.0,9.999e-05,2]
[348107379,1736319038894,-500.0,9.999e-05,2]
[348107380,1736319038903,-500.0,9.999e-05,2]
[348107381,1736319038913,-500.0,9.999e-05,2]
[348107382,1736319038923,-500.0,9.999e-05,2]
[348107383,1736319038932,-500.0,9.999e-05,2]
[348107384,1736319038941,-500.0,9.999e-05,2]
[348107385,1736319038951,-500.0,9.999e-05,2]
[348107386,1736319038960,-500.0,9.999e-05,2]
[348107387,1736319038971,-500.0,9.999e-05,2]
[348107388,1736319038980,-500.0,9.999e-05,2]
[348107389,1736319038989,-500.0,9.999e-05,2]
[348107390,1736319038998,-500.0,9.999e-05,2]
[348107391,1736319039007,-500.0,9.999e-05,2]
[348107392,1736319039016,-500.0,9.999e-05,2]
[348107393,1736319039025,-500.0,9.999e-05,2]
[348107394,1736319039035,-500.0,9.999e-05,2]
[348107395,1736319039046,-500.0,9.999e-05,2]
[348107396,1736319039055,-500.0,9.999e-05,2]
[348107397,1736319039064,-500.0,9.999e-05,2]
[348107398,1736319039074,-500.0,9.999e-05,2]
[348107399,1736319039083,-500.0,9.999e-05,2]
[348107400,1736319039092,-500.0,9.999e-05,2]
[348107401,1736319039101,-500.0,9.999e-05,2]
[348107402,1736319039111,-500.0,9.999e-05,2]
[348107403,1736319039120,-500.0,9.999e-05,2]
[348107404,1736319039130,-500.0,9.999e-05,2]
[348107405,1736319039139,-500.0,9.999e-05,2]
[348107406,1736319039148,-500.0,9.999e-05,2]
[348107407,1736319039158,-500.0,9.999e-05,2]
[348107408,1736319039167,-489.73238442,9.999e-05,2]
[348107409,1736319039182,-10.26761558,9.999e-05,2]
[348107410,1736319039204,-500.0,9.999e-05,2]
[348107411,1736319039225,-500.0,9.999e-05,2]
[348107412,1736319039237,-500.0,9.999e-05,2]
[348107413,1736319039246,-500.0,9.999e-05,2]
[348107414,1736319039255,-500.0,9.999e-05,2]
[348107415,1736319039265,-371.11238442,9.999e-05,2]
[348107416,1736319039293,-128.88761558,9.999e-05,2]
[348107417,1736319039303,-500.0,9.999e-05,2]
[348107418,1736319039312,-500.0,9.999e-05,2]
[348107419,1736319039322,-116.49205884,9.999e-05,2]
[348107420,1736319039335,-383.50794116,9.999e-05,2]
[348107421,1736319039344,-96.2767555,9.999e-05,2]
[348107422,1736319039355,-403.7232445,9.999e-05,2]
[348107423,1736319039364,-35.26527262,9.999e-05,2]
[348107424,1736319039376,-464.73472738,9.999e-05,2]
[348107425,1736319039384,-500.0,9.999e-05,2]
[348107426,1736319039394,-500.0,9.999e-05,2]
[348107427,1736319039403,-616.61849769,9.999e-05,2]
[348107428,1736319039413,-500.0,9.999e-05,2]
[348107429,1736319039422,-500.0,9.999e-05,2]
[348107430,1736319039431,-500.0,9.999e-05,2]
[348107431,1736319039440,-500.0,9.999e-05,2]
[348107432,1736319039449,-500.0,9.999e-05,2]
[348107433,1736319039458,-500.0,9.999e-05,2]
[348107434,1736319039469,-500.0,9.999e-05,2]
[348107436,1736319039478,-390.07,9.999e-05,2]
[348107437,1736319039489,-185.10804985,9.999e-05,2]
[348107443,1736319039619,-314.89195015,9.999e-05,2]
[348107444,1736319039628,-500.0,9.999e-05,2]
[348107445,1736319039637,-753.41,9.999e-05,2]
[348107446,1736319039646,-500.0,9.999e-05,2]
[348107447,1736319039656,-500.0,9.999e-05,2]
[348107448,1736319039665,-500.0,9.999e-05,2]
[348107449,1736319039674,-500.0,9.999e-05,2]
[348107450,1736319039683,-500.0,9.999e-05,2]
[348107451,1736319039692,-500.0,9.999e-05,2]
[348107452,1736319039702,-407.25913018,9.999e-05,2]
[348107453,1736319039713,-92.74086982,9.999e-05,2]
[348107454,1736319039725,-476.63977262,9.999e-05,2]
[348107456,1736319043093,-23.36022738,9.999e-05,2]
[348107457,1736319043104,-290.58544887,9.999e-05,2]
[348107460,1736319043116,-209.41455113,9.999e-05,2]
[348107461,1736319043127,-278.75822791,9.999e-05,2]
[348107463,1736319043139,-221.24177209,9.999e-05,2]
[348107464,1736319043149,-500.0,9.999e-05,2]
[348107465,1736319043159,-500.0,9.999e-05,2]
[348107466,1736319043170,-500.0,9.999e-05,2]
[348107467,1736319043179,-316.75822791,9.999e-05,2]
[348107468,1736319043195,-183.24177209,9.999e-05,2]
[348107469,1736319043205,-500.0,9.999e-05,2]
[348107470,1736319043215,-500.0,9.999e-05,2]
[348107471,1736319043228,-500.0,9.999e-05,2]
[348107473,1736319043239,-500.0,9.999e-05,2]
[348107475,1736319043249,-500.0,9.999e-05,2]
[348107476,1736319043259,-500.0,9.999e-05,2]
[348107477,1736319043271,-500.0,9.999e-05,2]
[348107478,1736319043280,-500.0,9.999e-05,2]
[348107480,1736319043291,-500.0,9.999e-05,2]
[348107481,1736319043301,-504.32549633,9.999e-05,2]
[348107482,1736319043311,-500.0,9.999e-05,2]
[348107483,1736319043321,-155.35274499,9.999e-05,2]
[348107485,1736319043331,-500.0,9.999e-05,2]
[348107487,1736319043341,-500.0,9.999e-05,2]
[348107488,1736319043351,-500.0,9.999e-05,2]
[348107489,1736319043360,-500.0,9.999e-05,2]
[348107490,1736319043370,-500.0,9.999e-05,2]
[348107491,1736319043380,-500.0,9.999e-05,2]
[348107492,1736319043390,-500.0,9.999e-05,2]
[348107493,1736319043399,-500.0,9.999e-05,2]
[348107494,1736319043409,-500.0,9.999e-05,2]
[348107495,1736319043418,-500.0,9.999e-05,2]
[348107497,1736319043427,-540.9,9.999e-05,2]
[348107499,1736319043440,-261.99256094,9.999e-05,2]
[348107500,1736319043450,-500.0,9.999e-05,2]
[348107501,1736319043461,-571.58,9.999e-05,2]
[348107502,1736319043476,-500.0,9.999e-05,2]
[348107503,1736319043486,-525.17,9.999e-05,2]
[348107504,1736319043497,-500.0,9.999e-05,2]
[348107505,1736319043506,-500.0,9.999e-05,2]
[348107506,1736319043516,-711.72,9.999e-05,2]
[348107507,1736319043526,-500.0,9.999e-05,2]
[348107508,1736319043536,-500.0,9.999e-05,2]
[348107509,1736319043546,-231.11881211,9.999e-05,2]
[348107510,1736319043558,-268.88118789,9.999e-05,2]
[348107511,1736319043568,-500.0,9.999e-05,2]
[348107512,1736319043579,-500.0,9.999e-05,2]
[348107513,1736319043589,-476.31881211,9.999e-05,2]
[348107514,1736319043623,-563.40118789,9.999e-05,2]
[348107515,1736319043632,-503.70303164,9.999e-05,2]
[348107516,1736319043642,-500.0,9.999e-05,2]
[348107517,1736319043652,-500.0,9.999e-05,2]
[348107518,1736319043661,-500.0,9.999e-05,2]
[348107519,1736319043672,-63.91173838,9.999e-05,2]
[348107520,1736319043684,-268.13583273,9.999e-05,2]
[348107521,1736319043696,-167.95242889,9.999e-05,2]
[348107523,1736319043706,-142.45634068,9.999e-05,2]
[348107525,1736319043721,-1181.43300001,9.999e-05,2]
[348107532,1736319043880,-118.31065931,9.999e-05,2]
[348107533,1736319043890,-500.0,9.999e-05,2]
[348107534,1736319043900,-500.0,9.999e-05,2]
[348107535,1736319043910,-500.0,9.999e-05,2]
[348107537,1736319044139,-500.0,9.999e-05,2]
[348107538,1736319044153,-500.0,9.999e-05,2]
[348107539,1736319044163,-500.0,9.999e-05,2]
[348107540,1736319044173,-500.0,9.999e-05,2]
[348107541,1736319044182,-500.0,9.999e-05,2]
[348107542,1736319044196,-500.0,9.999e-05,2]
[348107543,1736319044209,-500.0,9.999e-05,2]
[348107544,1736319044222,-500.0,9.999e-05,2]
[348107545,1736319044232,-513.86057102,9.999e-05,2]
[348107546,1736319044242,-500.0,9.999e-05,2]
[348107547,1736319044252,-500.0,9.999e-05,2]
[348107548,1736319044262,-500.0,9.999e-05,2]
[348107549,1736319044271,-500.0,9.999e-05,2]
[348107550,1736319044282,-500.0,9.999e-05,2]
[348107551,1736319044292,-500.0,9.999e-05,2]
[348107552,1736319044302,-500.0,9.999e-05,2]
[348107553,1736319044311,-500.0,9.999e-05,2]
[348107554,1736319044321,-500.0,9.999e-05,2]
[348107555,1736319044331,-500.0,9.999e-05,2]
[348107556,1736319044340,-652.45,9.999e-05,2]
[348107557,1736319044350,-282.42,9.999e-05,2]
[348107558,1736319044360,-1449.3,9.999e-05,2]
[348107559,1736319044370,-500.0,9.999e-05,2]
[348107560,1736319044379,-802.87,9.999e-05,2]
[348107561,1736319044389,-500.0,9.999e-05,2]
[348107562,1736319044399,-500.0,9.999e-05,2]
[348107563,1736319044407,-1568.92,9.999e-05,2]
[348107564,1736319044416,-500.0,9.999e-05,2]
[348107565,1736319044424,-500.0,9.999e-05,2]
[348107566,1736319044434,-500.0,9.999e-05,2]
[348107567,1736319044443,-500.0,9.999e-05,2]
[348107568,1736319044452,-864.65,9.999e-05,2]
[348107569,1736319044462,-500.0,9.999e-05,2]
[348107570,1736319044475,-500.0,9.999e-05,2]
[348107571,1736319044485,-500.0,9.999e-05,2]
[348107572,1736319044495,-500.0,9.999e-05,2]
[348107573,1736319044504,-500.0,9.999e-05,2]
[348107574,1736319044514,-500.0,9.999e-05,2]
[348107575,1736319044523,-500.0,9.999e-05,2]
[348107576,1736319044533,-500.0,9.999e-05,2]
[348107577,1736319044543,-1110.33,9.999e-05,2]
[348107578,1736319044552,-500.0,9.999e-05,2]
[348107579,1736319044562,-500.0,9.999e-05,2]
[348107580,1736319044572,-675.07,9.999e-05,2]
[348107581,1736319044581,-541.02,9.999e-05,2]
[348107582,1736319044591,-500.0,9.999e-05,2]
[348107583,1736319044600,-500.0,9.999e-05,2]
[348107584,1736319044609,-500.0,9.999e-05,2]
[348107585,1736319044618,-500.0,9.999e-05,2]
[348107586,1736319044627,-500.0,9.999e-05,2]
[348107587,1736319044636,-500.0,9.999e-05,2]
[348107588,1736319044645,-500.0,9.999e-05,2]
[348107589,1736319044654,-1338.89,9.999e-05,2]
[348107590,1736319044664,-883.63,9.999e-05,2]
[348107591,1736319044673,-508.5526999,9.999e-05,2]
[348107592,1736319044682,-500.0,9.999e-05,2]
[348107593,1736319044691,-426.11403526,9.999e-05,2]
[348107594,1736319044700,-500.0,9.999e-05,2]
[348107595,1736319044709,-500.0,9.999e-05,2]
[348107596,1736319044722,-500.0,9.999e-05,2]
[348107597,1736319044734,-331.90805916,9.999e-05,2]
[348107598,1736319044743,-500.0,9.999e-05,2]
[348107599,1736319044753,-500.0,9.999e-05,2]
[348107600,1736319044762,-1988.82,9.999e-05,2]
[348107601,1736319044772,-500.0,9.999e-05,2]
[348107602,1736319044781,-500.0,9.999e-05,2]
[348107603,1736319044791,-500.0,9.999e-05,2]
[348107604,1736319044801,-500.0,9.999e-05,2]
[348107605,1736319044810,-500.0,9.999e-05,2]
[348107606,1736319044819,-500.0,9.999e-05,2]
[348107607,1736319044829,-500.0,9.999e-05,2]
[348107608,1736319044843,-500.0,9.999e-05,2]
[348107609,1736319044853,-500.0,9.999e-05,2]
[348107610,1736319044862,-500.0,9.999e-05,2]
[348107611,1736319044872,-593.75,9.999e-05,2]
[348107612,1736319044881,-1308.35,9.999e-05,2]
[348107613,1736319044890,-269.85587366,9.999e-05,2]
[348107614,1736319044899,-500.0,9.999e-05,2]
[348107615,1736319044909,-749.68,9.999e-05,2]
[348107616,1736319044918,-500.0,9.999e-05,2]
[348107617,1736319044927,-500.0,9.999e-05,2]
[348107618,1736319044937,-500.0,9.999e-05,2]
[348107619,1736319044947,-500.0,9.999e-05,2]
[348107620,1736319044956,-279.4781576,9.999e-05,2]
[348107621,1736319044966,-1486.38,9.999e-05,2]
[348107622,1736319044979,-500.0,9.999e-05,2]
[348107623,1736319044989,-502.38887636,9.999e-05,2]
[348107624,1736319044998,-1731.11,9.999e-05,2]
[348107625,1736319045008,-500.0,9.999e-05,2]
[348107626,1736319045017,-500.0,9.999e-05,2]
[348107627,1736319045026,-500.0,9.999e-05,2]
[348107628,1736319045035,-500.0,9.999e-05,2]
[348107629,1736319045045,-500.0,9.999e-05,2]
[348107630,1736319045055,-500.0,9.999e-05,2]
[348107631,1736319045065,-502.52758166,9.999e-05,2]
[348107632,1736319045076,-2040.19,9.999e-05,2]
[348107633,1736319045087,-500.0,9.999e-05,2]
[348107634,1736319045098,-491.74730206,9.999e-05,2]
[348107635,1736319045108,-500.0,9.999e-05,2]
[348107636,1736319045118,-337.27492149,9.999e-05,2]
[348107637,1736319045129,-500.0,9.999e-05,2]
[348107638,1736319045139,-310.82688619,9.999e-05,2]
[348107639,1736319045149,-500.0,9.999e-05,2]
[348107640,1736319045159,-500.0,9.999e-05,2]
[348107641,1736319045169,-500.0,9.999e-05,2]
[348107642,1736319045180,-500.0,9.999e-05,2]
[348107643,1736319045192,-509.05,9.999e-05,2]
[348107644,1736319045205,-7657.71966963,0.0001,2]
[348107645,1736319045236,-500.0,0.0001,2]
[348107646,1736319045248,-294.0,0.0001,2]
[348107647,1736319045260,-601.43470196,0.0001,2]
[348107649,1736319045285,-9200.0,0.0001,2]
[348107650,1736319045300,-390.38999984,0.0001,2]
[348107651,1736319045312,-536.07159927,0.0001,2]
[348107652,1736319045332,-1413.06,9.999e-05,2]
[348107655,1736319045341,-5402.41,0.0001,2]
[348107657,1736319045352,-962.52335188,0.0001,2]
[348107659,1736319045378,-13903.98220043,0.0001,2]
[348107660,1736319045657,-1000.0,9.852e-05,2]
[348107661,1736319045667,-206.507626,9.999e-05,2]
[348107662,1736319045676,-649.56,9.999e-05,2]
[348107663,1736319045687,-25319.76241095,0.0001,2]
[348107664,1736319045698,-8656.18719702,0.0001,2]
[348107665,1736319045709,-1904.66031614,0.0001,2]
[348107666,1736319045722,-2351.63147196,0.0001,2]
[348107667,1736319045733,-14406.8,0.0001,2]
[348107668,1736319045744,-31663.25833342,0.0001,2]
[348107669,1736319045756,-1457.39863166,0.0001,2]
[348107670,1736319045767,-1397.97188857,0.0001,2]
[348107671,1736319045778,-142200.00125498,0.0001,2]
[348107672,1736319045803,-287.86296367,0.0001,2]
[348107673,1736319045814,-405.155,0.0001,2]
[348107674,1736319045849,-19211.99999998,0.0001,2]
[348107675,1736319045954,-165533.05123288,0.0001,2]
[348107676,1736319045963,-167.25,0.0001,2]
[348107677,1736319045973,-460.15907397,0.0001,2]
[348107678,1736319045982,-3796.66554924,0.0001,3]
[348107679,1736319045991,-3000.0,0.0001,2]
[348107680,1736319046000,-224.95645752,0.0001,2]
[348107681,1736319046009,-150.0,0.00010056,2]
[348107682,1736319046018,-150.0,0.00010056,2]
[348107683,1736319046027,-182.91,0.00010056,2]
[348107684,1736319046036,-152.33,0.00010056,2]
[348107685,1736319046045,-309.91,0.00010137,2]
[348107686,1736319046054,-621.89,0.00010137,2]
[348107687,1736319046064,-214.263572,0.00010171,2]
[348107688,1736319046073,-436.69,0.00010247,2]
[348107689,1736319046083,-182.83,0.00010247,2]
[348107690,1736319046092,-1016.46,0.00010247,2]
[348107691,1736319046101,-979.58,0.00010247,2]
[348107692,1736319046110,-979.58,0.00010247,2]
[348107693,1736319046119,-500.0,0.00010273,2]
[348107694,1736319046128,-500.0,0.00010273,2]
[348107695,1736319046137,-1481.81,0.00010273,2]
[348107696,1736319046146,-500.0,0.00010273,2]
[348107697,1736319046155,-500.0,0.00010273,2]
[348107698,1736319046164,-221.361275,0.00010273,2]
[348107699,1736319046173,-310.957705,0.00010273,2]
[348107700,1736319046182,-500.0,0.00010273,2]
[348107701,1736319046196,-200.06012472,0.00010273,2]
[348107702,1736319046205,-570.35169556,0.00010273,2]
[348107703,1736319046215,-500.0,0.00010273,2]